Cogmind - Beta 13 @@@ ROGUE MODE // 2024.05.11 @ 12:25:38 Player: Exceptionally Mediocre Result: Destroyed by G-34 Mercenary with Small Laser Performance ------------- Evolutions (0) 0 Regions Visited (1) 200 Robots Destroyed (16) 80 Value Destroyed (290) 290 Prototype IDs (0) 0 Alien Tech Used (0) 0 Bonus (0) 0 TOTAL SCORE: 570 Bonus ------- None Cogmind --------- Core Integrity 0/250 Matter 145/300 Energy 124/250 System Corruption 3% Temperature Cool (12) Movement Core (250) Ox4 Location -10/Materials Parts ------- > --- POWER (1) -------- Ion Engine > --- PROPULSION (2) --- (None) > --- UTILITY (2) ------ Small Storage Unit Improved Terrain Scanner > --- WEAPON (2) ------- Assault Rifle Light Assault Rifle > --- INVENTORY (8) ---- Ion Engine Improved Terrain Scanner Medium Laser Grenade Launcher Grenade Launcher Peak State ------------ > --- POWER ------------ Ion Engine > --- PROPULSION ------- Light Treads Light Treads > --- UTILITY ---------- Small Storage Unit Improved Terrain Scanner > --- WEAPON ----------- Assault Rifle Assault Rifle > --- INVENTORY -------- Ion Engine Medium Laser [Rating: 9] Favorites ----------- Power Ion Engine Engine Ion Engine Propulsion Light Treads Treads Light Treads Utility Small Storage Unit Device Improved Terrain Scanner Storage Small Storage Unit Weapon Assault Rifle Ballistic Gun Assault Rifle Launcher Grenade Launcher Build | -11 -10 ------- Run | Yrd Mat Slots Evolved . | . . Power . | . . Propulsion . | . . Utility . | . . Weapon . | . . Parts Attached 12 | 7 5 Power 2 | 1 1 Engine 2 | 1 1 Core . | . . Reactor . | . . Propulsion 2 | 2 . Treads 2 | 2 . Leg . | . . Wheel . | . . Hover . | . . Flight . | . . Utility 2 | 2 . Device 1 | 1 . Storage 1 | 1 . Processor . | . . Hackware . | . . Protection . | . . Artifact . | . . Weapon 6 | 2 4 Energy Gun . | . . Energy Cannon . | . . Ballistic Gun 5 | 2 3 Ballistic Cannon . | . . Launcher 1 | . 1 Special Weapon . | . . Impact Weapon . | . . Slashing Weapon . | . . Piercing Weapon . | . . Special Melee Weapon . | . . Unidentified Prototypes . | . . Parts Lost 5 | . 5 Power 1 | . 1 Propulsion 2 | . 2 Utility . | . . Weapon 2 | . 2 Highest Loss Streak 4 | . 4 To Critical Strikes . | . . Average Slot Usage (%) 94 | . 94 Engine 14 | . 14 Treads 23 | . 23 Device 14 | . 14 Storage 14 | . 14 Ballistic Gun 18 | . 18 Launcher 9 | . 9 Naked Turns . | . . Heaviest Build 16 | 15 16 Greatest Support 40 | 40 40 Greatest Overweight (x) 4 | . 4 Average Overweight (x) . | . . Largest Inventory Capacity 8 | 8 8 Average Capacity 7 | 7 8 Most Carried 7 | 2 7 Average Carried 4 | 1 5 Final Capacity 8 | 8 8 Final Carried 5 | 2 5 Class Distribution -------------------- 100% | Mutant Dominant Class ---------------- Mutant | -10/Materials Resources | -11 -10 ----------- Run | Yrd Mat Matter Collected 452 | 251 201 Remotely . | . . Salvage Created 498 | 30 468 Parts 24 | 1 23 Haulers Intercepted . | . . Recyclers Shooed . | . . Parts Field Recycled . | . . Retrieved Matter . | . . Parts Self-Destructed . | . . Prevented . | . . Kills | -11 -10 ------- Run | Yrd Mat Combat Hostiles Destroyed 9 | . 9 Guns 6 | . 6 AOE 3 | . 3 Classes Destroyed 7 | 1 6 Worker 2 | . 2 Builder 1 | . 1 Tunneler 2 | 1 1 Recycler 1 | . 1 Watcher 1 | . 1 Swarmer 3 | . 3 Grunt 6 | . 6 Best Kill Streak 3 | 1 3 Combat Bots Only 3 | . 3 Max Kills in Single Turn 1 | 1 1 Gunslinging . | . . Exploded 1 | . 1 Melee . | . . Uniques/NPCs Destroyed . | . . Combat | -11 -10 -------- Run | Yrd Mat Hostile Shots Fired 113 | . 113 Missed 31 | . 31 Damage Taken 993 | . 993 Core 257 | . 257 Absorbed by Shields . | . . Core Remaining (%) 100 | 100 . Volleys Fired 77 | 3 74 Largest 2 | 2 2 Hottest 40 | 40 40 Shots Fired 123 | 6 117 Gun 120 | 6 114 Cannon . | . . Launcher 3 | . 3 Special . | . . Kinetic 120 | 6 114 Thermal . | . . Explosive 3 | . 3 Electromagnetic . | . . Robot Hit Streak 11 | 1 11 Robot Miss Streak 4 | 3 4 Penetration Max . | . . Secondary Targets 2 | . 2 Max Gunslinging Chain 1 | . 1 Shots Hit Robots 71 | 2 69 Core Hits 28 | 1 27 Critical Kills . | . . Critical Parts Destroyed 2 | . 2 Critical Strikes 2 | . 2 Destroy 2 | . 2 Melee Attacks . | . . Impact . | . . Slashing . | . . Piercing . | . . Sneak Attacks . | . . Combat Hostiles . | . . Follow-up Attacks . | . . Damage Inflicted 963 | 21 942 Guns 816 | 21 795 Cannons . | . . Explosions 147 | . 147 Melee . | . . Ramming . | . . Kinetic 816 | 21 795 Thermal . | . . Explosive 147 | . 147 Electromagnetic . | . . Impact . | . . Slashing . | . . Piercing . | . . Highest Corruption 3 | . 3 Average Corruption 2 | . 2 Corruption Purged . | . . Corruption Blocked . | . . Effects 5 | . 5 Message Errors 1 | . 1 Matter Fused 2 | . 2 Data Loss (major) 1 | . 1 Weapon Failures 1 | . 1 Overload Shots . | . . Overflow Damage 15 | . 15 Projectiles . | . . Explosions 15 | . 15 Melee . | . . Knockbacks . | . . Impact . | . . Kinetic . | . . Secondary . | . . Self-Inflicted Damage . | . . Shots . | . . Rammed . | . . Targets Rammed . | . . Kicked . | . . Crushed . | . . Highest Temperature 34 | . 34 Average Temperature 13 | . 13 Received Heat Transfer 522 | . 522 Siege Activations . | . . Robots Corrupted . | . . Combat Hostiles . | . . Parts Fried . | . . Impact Corruptions . | . . Robots Melted . | . . Combat Hostiles . | . . Parts Melted . | . . Heat Transferred . | . . Parts Sabotaged . | . . Parts Stolen . | . . Parts Stripped . | . . Power Chain Reactions . | . . Alert | -11 -10 ------- Run | Yrd Mat Peak Influence 194 | 5 194 Initial 3 | . 3 Average 105 | . 120 Maximum Alert Level . | . . Low Security (%) 100 | 100 100 Level 1 . | . . Level 2 . | . . Level 3 . | . . Level 4 . | . . Level 5 . | . . High Security . | . . Max Security . | . . Squads Dispatched 2 | . 2 Investigation . | . . Extermination . | . . Reinforcement 2 | . 2 Assault . | . . Garrison . | . . Intercept . | . . Searches Triggered . | . . Construction Impeded . | . . Haulers Reinforced . | . . Active Scanning Responses . | . . Cargo Convoy Interrupts . | . . Stealth | -11 -10 --------- Run | Yrd Mat Distress Signals 2 | . 2 Communications Jammed . | . . Distress Signals . | . . Times Spotted 18 | . 18 Peak Tracking Total 5 | . 5 Tactical Retreats . | . . Traps | -11 -10 ------- Run | Yrd Mat Traps Triggered 3 | . 3 Indirectly . | . . Trap Hack Attempts . | . . Triggered . | . . Disarmed . | . . Reprogrammed . | . . Reused . | . . Traps Extracted . | . . Installed . | . . Triggered . | . . Machines | -11 -10 ---------- Run | Yrd Mat Machines Disabled . | . . Max in Single Turn . | . . Machines Repaired . | . . Machines Dismantled . | . . Machines Sabotaged . | . . Overloaded Fab Kills . | . . Hacking | -11 -10 --------- Run | Yrd Mat Machines Accessed 1 | . 1 Terminals 1 | . 1 Fabricators . | . . Repair Stations . | . . Recycling Units . | . . Scanalyzers . | . . Garrison Access . | . . Total Hacks 2 | . 2 Successful 1 | . 1 Failed 1 | . 1 Catastrophic . | . . Database Lockouts . | . . Manual 2 | . 2 Terminals 2 | . 2 Fabricators . | . . Repair Stations . | . . Recycling Units . | . . Scanalyzers . | . . Garrison Access . | . . Terminal Hacks . | . . Fabricator Hacks . | . . Repair Station Hacks . | . . Recycling Unit Hacks . | . . Scanalyzer . | . . Garrison Access Hacks . | . . Unauthorized Hacks 1 | . 1 Terminals 1 | . 1 Botnet 1 | . 1 Fabricators . | . . Repair Stations . | . . Recycling Units . | . . Scanalyzers . | . . Garrison Access . | . . Data Cores Recovered . | . . Used . | . . Hacking Detections 1 | . 1 Full Trace Events . | . . Feedback Events . | . . Feedback Blocked . | . . Robot Schematics Acquired . | . . Robots Built . | . . Authchips . | . . Time . | . . Total Robot Build Rating . | . . Part Schematics Acquired . | . . Parts Built . | . . Authchips . | . . Time . | . . Total Part Build Rating . | . . Parts Repaired . | . . Time . | . . Parts Recycled . | . . Recycled Matter . | . . Retrieved Matter . | . . Retrieved Components . | . . Parts Scanalyzed . | . . Part Schematics Acquired . | . . Parts Damaged . | . . Bothacking | -11 -10 ------------ Run | Yrd Mat Used RIF Installer . | . . Robots Hacked . | . . Non-combat . | . . Combat . | . . Robot Hacks Applied . | . . Relay Couplers Released . | . . Fabnet Peak Effective % . | . . Robots Rewired . | . . Allies Hacked . | . . Hacks Repelled . | . . Allies | -11 -10 -------- Run | Yrd Mat Total Allies . | . . Largest Group . | . . Highest-Rated Group . | . . Highest-Rated Ally . | . . Total Orders . | . . Ally Attacks . | . . Total Damage . | . . Kills . | . . Allies Corrupted . | . . Allies Melted . | . . Intel | -11 -10 ------- Run | Yrd Mat Robot Analysis Total . | . . Derelict Logs Recovered . | . . Drone Launches . | . . Drone Recoveries . | . . Exploration | -11 -10 ------------- Run | Yrd Mat Turns Passed 671 | 88 583 Spaces Moved 280 | 45 235 Core 14 | 4 10 Treads 266 | 41 225 Legs . | . . Wheels . | . . Hover . | . . Flight . | . . Fastest Speed 50 | 50 160 Average Speed 161 | 150 163 Slowest Speed 250 | 160 250 Overloaded Moves . | . . Propulsion Burnouts . | . . Robots Hopped . | . . Cave-ins Triggered . | . . Exploration Rate (%) 26 | 4 48 Regions Visited 1 Branch Regions . Pre-discovered Areas . | . . Known Exits Taken . | . . Unknown Exits Taken 1 | 1 . Scrap Searched . | . . Spaces Dug . | . . Terrain Destroyed 28 | . 28 Melee . | . . Projectile . | . . AOE 28 | . 28 Terrain Rammed . | . . Walls Destroyed . | . . Machines Disabled . | . . Actions | -11 -10 --------- Run | Yrd Mat Total 379 | 56 323 Wait 3 | . 3 Move 279 | 44 235 Hop . | . . Pick Up 8 | 2 6 Fast Attach 7 | 7 . Attach 3 | . 3 Detach . | . . Swap 2 | . 2 Drop . | . . Fire 77 | 3 74 Melee . | . . Ram . | . . Kick . | . . Crush . | . . Escape Stasis . | . . Rewire . | . . Trap . | . . Miscellaneous . | . . Route ------- -11/Scrapyard -10/Materials (discovered 1 exit: [*Mat]) History --------- Turn | Location | Event 16 | -11/Scrapyard | Discovered new exit (range 15) 89 | -11/Scrapyard | Entered Materials 314 | -10/Materials | Build established: Mutant 505 | -10/Materials | Discovered new exit (range 5) 587 | -10/Materials | Core integrity fell below 50% 605 | -10/Materials | Lost 4 parts (2n2w) 656 | -10/Materials | Core integrity fell below 20% 672 | -10/Materials | Destroyed by G-34 Mercenary with Small Laser Last Messages --------------- 00648_ K-01 Serf collects debris. 00649_ R-06 Scavenger inserts Ion Engine into recycling unit. 00649_ K-01 Serf collects debris. 00652_ R-06 Scavenger collects Lgt. Ion Engine. 00654_ K-01 Serf collects debris. 00656_ R-06 Scavenger collects Sml. Matter Pod. 00657_ K-01 Serf collects debris. 00657_ R-06 Scavenger inserts Sml. Laser into recycling unit. 00658_ Recycling unit begins recycling process. 00659_ R-06 Scavenger collects Wheel. 00659_ K-01 Serf collects debris. 00660_ R-06 Scavenger inserts Seismic Detector into recycling unit. 00661_ K-01 Serf collects debris. 00663_ R-06 Scavenger collects Wheel. 00663_ K-01 Serf collects debris. 00666_ Ion Engine destroyed. 00666_ K-01 Serf collects debris. Map ----- +----------------------------------------------------+ | ?????????????????????????????????????????????????? | | ?????????????????????????????????????????????????? | | ? ??#????????????????????????????????????????????? | | ????#????"???????????????????????????????????????? | | # #??????????????????????????????????????????????? | | ? #########??????????????????????????????????????? | | # ?????????????????????????????????????? | | ?????????????????????????????????????? | | ?????????????????????????????????????? | | "" """"???????????????????????????????????????? | | "Y ""??????????????? ????????????????????????? | | "" """"????????????# """ ???????????????????? | | ??????????# """ ???????????????????? | | ??????????# ???????????????????? | | ######+###+????? ?????# ??????????????????? | | ????????????????? ????# ???????????????????? | | ###?????????? ? ???# ???????? ??????????? | | #??????" ?#? ? ???# ?????!?? ??????????? | | #? ??????#????? ? ?# ? ??????????????? | | !!#????"????????? ? ## ??????????????? | | ! #??????? ?#???? ???#w """ """??????????????? | | ! #? ??????????##+##### """ """??"???????????? | | #????????????# """ """ """?????????? | | #????????#???# % ????????? | | ############## r% ?????????? | | ## "T" # @ """ ?????????????? | | ## """ # %""" """ ?????????????? | | ## """ #% """ "Y" g""" ?????????????? | | ## """ # "" """ g ????????????? | | ## # k ??????????? | | #########+###### r ??????????? | | ^ #### ########### ??????????? | | #??##+##??#?#?????????????????? | | ##+####+######## #? ? ? ????????????????????? | | # ### < #????? ?##??????????????????? | | # #?# #???? ? #???????????????????? | | """ !# """ #?#####??????? #???????????????????? | | """ # """ #?????? ??????? #????#??????????????? | | """ # """ #???#?? ?? ?????##??????????????????? | | # #?????? ? ???????#??????????????????? | | ################?#???? ????? ????????????????????? | | ?????????#??#????#??##?#?????????????????????????? | | ???????#??????#??????????#???????????????????????? | | ????#??#?##??##????#?????????????????????????????? | | ?#?????#???????#?????#???????????????????????????? | | ?????????????????????????????????????????????????? | | | | | | | | | +----------------------------------------------------+ Best States ------------- Heat Dissipation 25 Energy Generation 10 Energy Capacity 250 Matter Stores 271 Matter Capacity 300 Sight Range 16 Terrain Scan Range 16 Terrain Scan Density 10 Evasion (%) 40 Recoil Reduction 2 Item Schematics ----------------- None Robot Schematics ------------------ None Fabricated ------------ Nothing Alien Tech Used ----------------- None Achievements -------------- None Challenges ------------ None Game ------ Seed GuidancePoweredDisintegrator Manual? 0 Play Time 00:07:36 Cumulative 168.0 hours Start 2024.05.11 @ 12:21:31 End 2024.05.11 @ 12:25:38 Sessions 1 Manual Loads 0 Difficulty Rogue Special Mode None Game No. 193 Rogue 193 Adventurer 0 Explorer 0 Win Type - Total 0 Types 0/0/0/0/0/0/0/0/0 Lore% 38 Gallery% 63 Achievement% 43 Wizard Run 0 Options --------- Layout 1 ASCII 0 Keyboard 1 Movement Vi Keybinds 0 Fullscreen 1 Font 24/Smallcaps Map View 50x35 Zoom Use 0% Tactical HUD 1 Map Filters NONE Filters NONE Steam 1 RUN: 8964cfaf-2d56-425a-99d0-9d7fb9afac2a